[Event "Allsvenskan 24-25"]
[Site "Linköping, Sweden"]
[Date "2025.03.15"]
[Round "9.5"]
[White "Andersson, Görgen"]
[Black "Ivarsson, Simon"]
[Result "1/2-1/2"]
[TimeControl "90 min/40 moves + 30 min + 30 sec from move 1"]
[WhiteElo "1934"]
[BlackElo "1777"]

1. d4 {[%clk 01:30:57]} {[%emt 00:00:01]} Nf6 {[%clk 01:30:13]} {[%emt
00:00:48]} 2. Bg5 {[%clk 01:31:15]} {[%emt 00:00:12]} Ne4 {[%clk 01:30:36]}
{[%emt 00:00:06]} 3. h4 {[%clk 01:30:52]} {[%emt 00:00:53]} h6 {[%clk
01:30:51]} {[%emt 00:00:16]} 4. Bf4 {[%clk 01:29:21]} {[%emt 00:02:01]} e6
{[%clk 01:30:34]} {[%emt 00:00:47]} 5. Nd2 {[%clk 01:29:00]} {[%emt 00:00:51]}
d5 {[%clk 01:28:13]} {[%emt 00:02:52]} 6. f3 {[%clk 01:26:08]} {[%emt
00:03:22]} Bd6 {[%clk 01:25:45]} {[%emt 00:02:58]} 7. e3 {[%clk 01:12:27]}
{[%emt 00:14:11]} Nf6 {[%clk 01:25:05]} {[%emt 00:01:09]} 8. Qe2 {[%clk
01:11:33]} {[%emt 00:01:25]} Nc6 {[%clk 01:22:27]} {[%emt 00:03:09]} 9. Bxd6
{[%clk 01:08:06]} {[%emt 00:03:56]} Qxd6 {[%clk 01:18:30]} {[%emt 00:04:27]} 10.
f4 {[%clk 01:06:01]} {[%emt 00:02:36]} Bd7 {[%clk 01:17:33]} {[%emt 00:01:27]}
11. O-O-O {[%clk 01:04:22]} {[%emt 00:02:09]} a6 {[%clk 01:13:23]} {[%emt
00:04:41]} 12. Ngf3 {[%clk 01:04:19]} {[%emt 00:00:31]} Nb4 {[%clk 01:09:11]}
{[%emt 00:04:43]} 13. Kb1 {[%clk 01:02:28]} {[%emt 00:02:20]} Bb5 {[%clk
01:07:27]} {[%emt 00:02:15]} 14. c4 {[%clk 01:01:56]} {[%emt 00:01:02]} dxc4
{[%clk 01:06:09]} {[%emt 00:01:48]} 15. Nxc4 {[%clk 00:58:53]} {[%emt
00:03:34]} Qe7 {[%clk 01:05:03]} {[%emt 00:01:34]} 16. Qe1 {[%clk 00:53:54]}
{[%emt 00:05:27]} Nbd5 {[%clk 01:02:38]} {[%emt 00:02:57]} 17. Bd3 {[%clk
00:52:15]} {[%emt 00:02:09]} Ng4 {[%clk 00:58:26]} {[%emt 00:04:42]} 18. Nfd2
{[%clk 00:45:05]} {[%emt 00:07:40]} Ngxe3 {[%clk 00:55:12]} {[%emt 00:03:44]}
19. Nxe3 {[%clk 00:43:45]} {[%emt 00:01:51]} Bxd3+ {[%clk 00:54:29]} {[%emt
00:01:14]} 20. Ka1 {[%clk 00:44:07]} {[%emt 00:00:08]} Nxe3 {[%clk 00:51:27]}
{[%emt 00:03:31]} 21. Qxe3 {[%clk 00:44:23]} {[%emt 00:00:14]} Bh7 {[%clk
00:51:52]} {[%emt 00:00:06]} 22. Rc1 {[%clk 00:42:55]} {[%emt 00:01:58]} O-O
{[%clk 00:50:54]} {[%emt 00:01:28]} 23. g4 {[%clk 00:43:03]} {[%emt 00:00:22]}
Rfe8 {[%clk 00:49:12]} {[%emt 00:02:12]} 24. g5 {[%clk 00:42:04]} {[%emt
00:01:28]} h5 {[%clk 00:46:22]} {[%emt 00:03:20]} 25. Qf3 {[%clk 00:42:20]}
{[%emt 00:00:13]} Bg6 {[%clk 00:46:39]} {[%emt 00:00:14]} 26. Nc4 {[%clk
00:40:06]} {[%emt 00:02:45]} c6 {[%clk 00:43:57]} {[%emt 00:03:12]} 27. Ne5
{[%clk 00:40:27]} {[%emt 00:00:08]} Rad8 {[%clk 00:43:56]} {[%emt 00:00:32]} 28.
Rhd1 {[%clk 00:38:09]} {[%emt 00:02:48]} Rd5 {[%clk 00:42:21]} {[%emt
00:02:05]} 1/2-1/2

[Event "Allsvenskan 24-25"]
[Site "Linköping, Sweden"]
[Date "2025.03.15"]
[Round "9.6"]
[White "Martinelle, Christoffer"]
[Black "Holfve, Hakan"]
[Result "1-0"]
[TimeControl "90 min/40 moves + 30 min + 30 sec from move 1"]
[WhiteElo "1732"]
[BlackElo "1920"]

1. c4 {[%clk 01:30:41]} {[%emt 00:00:18]} b6 {[%clk 01:29:07]} {[%emt
00:01:52]} 2. Nf3 {[%clk 01:28:46]} {[%emt 00:02:26]} Bb7 {[%clk 01:28:37]}
{[%emt 00:00:59]} 3. g3 {[%clk 01:28:26]} {[%emt 00:00:51]} c5 {[%clk
01:27:21]} {[%emt 00:01:45]} 4. Bg2 {[%clk 01:27:36]} {[%emt 00:01:21]} Nf6
{[%clk 01:25:40]} {[%emt 00:02:11]} 5. O-O {[%clk 01:26:57]} {[%emt 00:01:10]}
d6 {[%clk 01:23:37]} {[%emt 00:02:32]} 6. Nc3 {[%clk 01:25:45]} {[%emt
00:01:42]} Nbd7 {[%clk 01:22:30]} {[%emt 00:01:37]} 7. d3 {[%clk 01:24:14]}
{[%emt 00:02:02]} g6 {[%clk 01:19:36]} {[%emt 00:03:24]} 8. Bd2 {[%clk
01:21:04]} {[%emt 00:03:40]} Bg7 {[%clk 01:16:14]} {[%emt 00:03:51]} 9. Qc1
{[%clk 01:18:47]} {[%emt 00:02:48]} a6 {[%clk 01:12:18]} {[%emt 00:04:26]} 10.
Bh6 {[%clk 01:16:24]} {[%emt 00:02:53]} O-O {[%clk 01:12:28]} {[%emt 00:00:20]}
11. Bxg7 {[%clk 01:15:17]} {[%emt 00:01:37]} Kxg7 {[%clk 01:12:45]} {[%emt
00:00:12]} 12. a3 {[%clk 01:14:25]} {[%emt 00:01:22]} Qc7 {[%clk 01:09:55]}
{[%emt 00:03:20]} 13. Qd2 {[%clk 00:58:20]} {[%emt 00:16:36]} Rac8 {[%clk
01:04:35]} {[%emt 00:05:49]} 14. Rfc1 {[%clk 00:55:55]} {[%emt 00:02:55]} Qb8
{[%clk 01:04:02]} {[%emt 00:01:03]} 15. Rab1 {[%clk 00:54:20]} {[%emt
00:02:05]} Qa8 {[%clk 01:04:06]} {[%emt 00:00:26]} 16. b4 {[%clk 00:41:40]}
{[%emt 00:13:11]} Ne5 {[%emt 00:02:00]} 17. Ne1 {[%clk 00:28:58]} {[%emt
00:13:09]} Bxg2 {[%clk 00:57:23]} {[%emt 00:05:46]} 18. Nxg2 {[%clk 00:28:21]}
{[%emt 00:01:08]} h5 {[%clk 00:53:58]} {[%emt 00:03:55]} 19. h4 {[%clk
00:25:38]} {[%emt 00:03:13]} Neg4 {[%clk 00:49:35]} {[%emt 00:04:52]} 20. bxc5
{[%clk 00:24:43]} {[%emt 00:01:26]} bxc5 {[%clk 00:49:10]} {[%emt 00:00:54]} 21.
Ne3 {[%clk 00:21:40]} {[%emt 00:03:33]} Rb8 {[%clk 00:48:48]} {[%emt 00:00:52]}
22. Ncd5 {[%clk 00:18:09]} {[%emt 00:04:03]} Nxe3 {[%clk 00:45:31]} {[%emt
00:03:46]} 23. Nxe3 {[%clk 00:18:24]} {[%emt 00:00:14]} Qc6 {[%clk 00:44:48]}
{[%emt 00:01:14]} 24. Rb2 {[%clk 00:16:27]} {[%emt 00:02:27]} Qd7 {[%clk
00:33:55]} {[%emt 00:11:22]} 25. Kg2 {[%clk 00:15:33]} {[%emt 00:01:23]} e5
{[%clk 00:33:56]} {[%emt 00:00:30]} 26. Rcb1 {[%clk 00:15:21]} {[%emt
00:00:43]} Rxb2 {[%clk 00:33:23]} {[%emt 00:01:04]} 27. Qxb2 {[%clk 00:14:08]}
{[%emt 00:01:43]} Ng4 {[%clk 00:33:25]} {[%emt 00:00:28]} 28. Qd2 {[%clk
00:13:57]} {[%emt 00:00:41]} Nxe3+ {[%clk 00:32:57]} {[%emt 00:00:58]} 29. Qxe3
{[%clk 00:14:17]} {[%emt 00:00:10]} f5 {[%clk 00:33:09]} {[%emt 00:00:17]} 30.
Qf3 {[%clk 00:13:59]} {[%emt 00:00:48]} Rf7 {[%clk 00:32:42]} {[%emt 00:00:56]}
31. Rb8 {[%clk 00:12:18]} {[%emt 00:02:12]} f4 {[%clk 00:32:36]} {[%emt
00:00:36]} 32. Qa8 {[%clk 00:11:25]} {[%emt 00:01:24]} fxg3 {[%clk 00:32:44]}
{[%emt 00:00:23]} 33. Rg8+ {[%clk 00:11:38]} {[%emt 00:00:17]} Kf6 {[%clk
00:32:32]} {[%emt 00:00:42]} 34. Qf3+ {[%clk 00:07:22]} {[%emt 00:04:45]} Qf5
{[%clk 00:29:18]} {[%emt 00:03:44]} 35. Qxf5+ {[%clk 00:06:28]} {[%emt
00:01:25]} Kxf5 {[%clk 00:29:35]} {[%emt 00:00:12]} 36. Kxg3 {[%clk 00:06:32]}
{[%emt 00:00:27]} Rb7 {[%clk 00:29:43]} {[%emt 00:00:21]} 37. Ra8 {[%clk
00:06:14]} {[%emt 00:00:48]} Rb6 {[%clk 00:29:21]} {[%emt 00:00:52]} 38. Kf3
{[%clk 00:05:53]} {[%emt 00:00:51]} Ke6 {[%clk 00:26:45]} {[%emt 00:03:06]} 39.
Rg8 {[%clk 00:01:50]} {[%emt 00:04:34]} Kf5 {[%clk 00:26:34]} {[%emt 00:00:40]}
40. Ra8 {[%clk 00:02:13]} {[%emt 00:00:07]} Kf6 {[%clk 00:26:36]} {[%emt
00:00:27]} 41. a4 {[%clk 00:25:08]} {[%emt 00:07:36]} Ke6 {[%clk 00:55:40]}
{[%emt 00:01:26]} 42. a5 {[%clk 00:23:13]} {[%emt 00:02:27]} Rc6 {[%clk
00:56:02]} {[%emt 00:00:07]} 43. Ke4 {[%clk 00:18:05]} {[%emt 00:05:37]} Rc7
{[%clk 00:56:05]} {[%emt 00:00:27]} 44. Rxa6 {[%clk 00:16:44]} {[%emt
00:01:51]} Rf7 {[%clk 00:56:28]} {[%emt 00:00:07]} 45. Ra8 {[%clk 00:12:13]}
{[%emt 00:05:01]} Rxf2 {[%clk 00:55:38]} {[%emt 00:01:20]} 46. Ke3 {[%clk
00:12:04]} {[%emt 00:00:39]} Rf1 {[%clk 00:56:00]} {[%emt 00:00:08]} 47. a6
{[%clk 00:11:39]} {[%emt 00:00:55]} Ra1 {[%clk 00:56:19]} {[%emt 00:00:11]} 48.
a7 {[%clk 00:11:35]} {[%emt 00:00:34]} Kd5 {[%emt 00:01:36]} 49. Ke4+ 1-0